bitfinex/quotes_ETHUSD_20260207
["timestamp","ask_amount","ask_price","bid_price","bid_amount"]
[1770432033034,0.002,2058.2,2057.9,1.05432054]
[1770432035332,0.002,2058.2,2058.0,1.05432054]
[1770432035901,0.002,2058.4,2058.0,1.05432054]
[1770432036231,0.004,2058.4,2058.0,1.05432054]
[1770432036616,0.002,2058.7,2057.9,1.21479879]
[1770432036617,0.002,2058.7,2058.1,1.04135965]
[1770432036811,0.002,2058.9,2058.1,1.04135965]
[1770432037020,0.004,2058.8,2058.1,1.04135965]
[1770432037432,0.004,2058.8,2058.3,1.04135965]
[1770432038018,0.004,2058.7,2058.2,1.21465358]
[1770432038228,0.004,2058.7,2058.3,0.60732679]
[1770432039104,1.00883363,2058.6,2058.0,1.82216124]
[1770432039407,1.21447656,2058.5,2057.9,1.21579354]
[1770432039607,1.21847656,2058.5,2057.9,1.21579354]
[1770432040334,1.21447656,2058.5,2057.9,1.21579354]
[1770432040905,2.21929061,2058.6,2058.0,0.71167104]
[1770432041105,4.85896852,2058.9,2058.0,0.71167104]
[1770432041106,0.004,2058.5,2058.0,0.71167104]
[1770432041300,2.22313524,2058.8,2058.0,0.71167104]
[1770432041527,0.004,2058.7,2058.0,0.71167104]
[1770432043437,2.21913524,2058.8,2058.1,2.25607224]
[1770432043438,0.004,2058.6,2058.1,2.25607224]
[1770432043639,0.004,2058.6,2058.2,0.78265937]
[1770432046538,0.004,2058.6,2058.3,1.04135965]
[1770432046737,0.002,2058.9,2058.4,1.04135965]
[1770432046915,0.004,2058.8,2058.4,1.04135965]
[1770432048737,0.002,2058.9,2058.2,0.78265937]
[1770432048738,0.004,2058.7,2058.2,0.78265937]
[1770432048942,0.004,2058.7,2058.3,1.21454395]
[1770432049166,0.004,2058.7,2058.4,0.68557023]
[1770432049310,0.004,2058.6,2058.2,0.78265937]
[1770432049516,1.00883363,2058.8,2058.2,1.99730671]
[1770432049734,0.004,2058.7,2058.2,1.99730671]
[1770432050416,0.004,2058.7,2058.4,0.001]
[1770432050745,0.002,2058.5,2058.4,0.001]
[1770432051645,0.006,2058.5,2058.4,0.001]
[1770432054631,0.002,2058.7,2058.4,0.001]
[1770432054830,0.004,2058.6,2058.4,0.30496664]
[1770432055232,0.002,2058.9,2058.4,1.34632629]
[1770432055433,0.004,2058.8,2058.4,1.34632629]
[1770432055931,0.004,2058.8,2058.5,1.21447656]
[1770432056423,0.004,2058.8,2058.4,2.56081369]
[1770432056623,0.004,2058.8,2058.5,0.74190432]
[1770432058326,1.00483363,2058.8,2058.5,0.74190432]
[1770432058549,1.00483363,2058.6,2058.1,1.21570764]
[1770432058851,1.00483363,2058.6,2058.2,1.21464862]
[1770432059620,0.004,2058.7,2058.2,1.21464862]
[1770432059822,0.004,2058.6,2058.2,1.8220965]
[1770432060241,0.004,2058.6,2058.2,0.60744788]
[1770432060649,0.004,2058.6,2058.2,1.82209654]
[1770432061759,0.004,2058.6,2058.2,0.60744788]
[1770432062060,0.004,2058.5,2058.1,1.21569987]
[1770432062466,1.00883363,2058.5,2058.1,0.001]
[1770432062767,1.00883363,2058.5,2057.9,0.001]
[1770432062768,1.00483363,2058.5,2057.9,0.001]
[1770432062938,1.00483363,2058.3,2057.9,0.001]
[1770432063362,0.004,2058.2,2057.9,0.001]
[1770432063558,0.004,2058.2,2058.1,0.001]
[1770432063769,0.004,2058.2,2057.9,0.001]
[1770432063770,1.00483363,2058.3,2057.9,0.001]
[1770432063974,0.003,2058.1,2057.9,0.001]
[1770432070185,0.002,2058.5,2057.9,0.001]
[1770432070186,0.97747289,2058.2,2057.9,0.001]
[1770432070698,0.002,2058.5,2057.9,0.001]
[1770432070699,0.98047289,2058.1,2057.9,0.001]
[1770432070908,0.97747289,2058.1,2057.9,0.001]
[1770432071195,0.98047289,2058.0,2057.9,0.001]
[1770432071367,0.97747289,2058.0,2057.9,0.001]
[1770432071568,0.98047289,2058.0,2057.9,0.001]
[1770432073260,4.86001252,2058.5,2057.9,0.001]
[1770432073261,2.19204421,2058.4,2057.9,0.001]
[1770432073460,0.97747289,2058.3,2057.9,0.001]
[1770432073995,0.003,2058.2,2057.9,0.001]
[1770432074289,0.98047289,2058.2,2057.7,0.001]
[1770432074490,0.97747289,2058.0,2057.7,0.001]
[1770432074666,2.19230354,2057.9,2057.7,0.001]
[1770432075064,0.97747289,2057.9,2057.7,0.001]
[1770432075880,1.68490449,2057.9,2057.7,0.001]
[1770432076077,0.97747289,2057.8,2057.5,0.001]
[1770432076310,0.97747289,2057.8,2057.3,0.001]
[1770432076311,0.98047289,2057.8,2057.3,0.001]
[1770432076492,0.97747289,2057.6,2057.1,0.001]
[1770432076670,0.97747289,2057.4,2057.1,0.001]
[1770432076872,0.97747289,2057.4,2056.8,0.001]
[1770432077185,0.98047289,2057.3,2056.8,0.001]
[1770432077399,0.98047289,2057.3,2056.6,0.001]
[1770432077601,0.97747289,2057.1,2056.6,0.001]
[1770432078394,0.003,2057.0,2056.6,0.001]
[1770432078586,0.97747289,2056.9,2056.6,0.001]
[1770432078791,2.19281602,2057.1,2056.6,0.001]
[1770432079506,0.97747289,2057.0,2056.6,0.001]
[1770432081101,2.19284194,2057.0,2056.6,0.001]
[1770432081272,1.21534179,2057.1,2056.6,0.001]
[1770432081475,0.97747289,2057.0,2056.6,0.001]
[1770432081680,0.97747289,2057.0,2056.2,4.08726632]
[1770432081681,0.97747289,2057.0,2056.2,2.87145436]
[1770432081902,0.97747289,2056.8,2055.9,1.21600274]
[1770432082103,0.97747289,2056.8,2056.0,1.21593801]
[1770432082403,0.97747289,2056.8,2056.0,1.92038293]
[1770432082604,0.97747289,2056.8,2056.0,1.9203491]
[1770432083389,2.19301234,2056.7,2056.0,1.92035611]
[1770432083702,0.003,2056.7,2056.1,0.96441169]
[1770432084407,1.21546206,2056.9,2056.0,1.92035611]
[1770432084408,0.003,2056.6,2056.0,1.92035611]
[1770432084586,0.98047289,2056.8,2056.1,0.6784366]
[1770432084787,0.98047289,2056.7,2056.1,0.6784366]
[1770432085825,0.98047289,2056.6,2056.1,0.6784366]
[1770432085988,0.003,2056.6,2056.1,1.89432986]
[1770432086194,0.003,2056.6,2056.2,0.84269206]
[1770432086728,2.19265784,2057.3,2056.3,0.96441169]
[1770432086878,2.19265784,2057.3,2056.2,0.84269206]
[1770432086879,0.97747289,2057.2,2056.2,0.84269206]
[1770432087275,0.97747289,2057.0,2056.2,0.84269206]
[1770432087697,0.97747289,2056.6,2056.2,0.84269206]
[1770432087904,0.97747289,2056.6,2056.0,4.8637809]
[1770432088109,0.003,2056.5,2056.2,1.21583115]
[1770432088317,0.003,2056.5,2056.1,1.21586431]
[1770432088513,0.003,2056.5,2056.2,0.001]
[1770432091883,1.2155443,2056.7,2056.2,0.001]
[1770432092083,0.003,2056.6,2056.2,0.001]
[1770432092614,0.003,2056.6,2056.2,1.21683503]
[1770432092796,0.003,2056.6,2056.2,1.92141997]
[1770432094713,0.003,2056.6,2056.2,0.70558494]
[1770432095405,0.003,2056.6,2055.8,4.86412624]
[1770432095406,0.97747289,2056.6,2055.5,0.96441169]
[1770432095588,0.97747289,2056.6,2055.6,1.21616416]
[1770432095911,1.04506347,2056.4,2055.6,1.2161796]
[1770432096300,0.002,2056.3,2055.7,1.03971929]
[1770432096612,0.002,2056.6,2056.2,2.29945734]
[1770432096793,0.002,2056.6,2056.2,0.04391958]
[1770432098000,0.002,2056.6,2056.2,1.25974956]
[1770432098517,0.002,2056.6,2056.2,1.25975334]
[1770432098890,0.002,2056.6,2056.2,2.29947263]
[1770432099195,0.002,2056.6,2056.2,2.97185447]
[1770432099399,0.002,2057.1,2056.5,1.08363887]
[1770432099617,1.21730358,2057.1,2056.8,0.04391958]
[1770432100388,1.21730358,2057.1,2056.5,0.04391958]
[1770432100610,2.26236705,2057.1,2056.5,0.04391958]
[1770432100814,0.71233457,2057.0,2056.8,0.04391958]
[1770432101911,0.71233457,2057.0,2056.5,1.25956928]
[1770432102113,0.002,2056.6,2056.5,1.25956928]
[1770432103012,0.002,2057.1,2056.6,1.03971929]
[1770432103195,0.002,2057.3,2057.0,1.03971929]
[1770432103519,0.002,2057.5,2057.2,0.04391958]
[1770432103721,0.002,2057.5,2057.2,1.08363887]
[1770432104404,0.002,2057.9,2057.2,1.08363887]
[1770432104720,0.002,2057.9,2057.5,0.04391958]
[1770432104721,0.002,2057.8,2057.5,0.04391958]
[1770432105219,0.002,2057.7,2057.6,1.21500777]
[1770432105417,0.002,2057.7,2057.6,1.82692052]
[1770432105626,0.004,2057.9,2057.6,1.82692052]
[1770432105802,0.002,2057.9,2057.8,0.04391958]
[1770432107334,0.002,2058.1,2057.8,0.04391958]
[1770432107513,0.004,2058.1,2057.8,0.04391958]
[1770432107832,0.004,2058.1,2057.8,1.25880033]
[1770432108827,0.002,2058.1,2057.8,2.03583456]
[1770432109527,0.004,2058.1,2057.8,0.04391958]
[1770432111320,0.002,2058.0,2057.8,0.04391958]
[1770432113207,0.002,2058.0,2057.8,1.25880886]
[1770432113528,0.002,2058.0,2057.8,0.04391958]
[1770432113932,0.002,2058.1,2057.8,1.87069043]
[1770432113933,0.002,2057.9,2057.8,1.87069043]
[1770432114337,0.002,2057.9,2057.8,0.65580376]
[1770432115532,0.002,2057.9,2057.8,1.87069344]
[1770432115916,0.002,2057.9,2057.6,5.89973729]
[1770432115917,0.002,2057.9,2057.7,0.04391958]
[1770432116321,0.002,2057.8,2057.7,0.04391958]
[1770432121236,1.04506347,2057.8,2056.5,5.94626173]
[1770432121545,1.04506347,2057.6,2057.1,0.04391958]
[1770432123922,1.04506347,2057.4,2056.8,1.2593998]
[1770432124121,1.04506347,2057.4,2057.1,0.04391958]
[1770432125719,1.04506347,2057.4,2057.3,0.001]
[1770432125921,2.26018935,2057.4,2057.3,0.001]
[1770432129134,2.26018935,2057.4,2057.1,0.04291958]
[1770432129341,0.71204677,2057.3,2057.1,0.04291958]
[1770432130123,1.21689724,2057.8,2057.4,0.04391958]
[1770432130452,2.23945495,2057.8,2057.4,0.04391958]
[1770432130620,0.002,2057.8,2057.4,0.04391958]
[1770432131023,1.02456026,2057.8,2057.1,0.04291958]
[1770432131224,1.02456026,2057.8,2057.1,1.25822248]
[1770432131225,1.02256026,2057.7,2057.1,1.25822248]
[1770432131461,1.02256026,2057.7,2057.4,0.04391958]
[1770432131927,0.002,2057.8,2057.4,0.04391958]
[1770432132760,0.002,2057.8,2057.7,0.04391958]
[1770432132929,0.002,2058.0,2057.7,0.04391958]
[1770432133127,0.002,2058.2,2057.8,1.21488968]
[1770432133324,0.002,2058.5,2058.0,1.02243965]
[1770432133526,0.002,2058.5,2058.0,0.04391958]
[1770432133768,1.02456026,2058.5,2057.9,0.70970422]
[1770432134051,1.02456026,2058.5,2057.7,1.2588229]
[1770432134230,1.02456026,2058.5,2057.7,0.04391958]
[1770432135228,1.02256026,2058.3,2057.7,1.2588683]
[1770432135641,0.002,2058.5,2058.0,1.02243965]
[1770432135845,0.002,2058.5,2058.3,0.04391958]
[1770432137348,0.002,2058.5,2058.3,1.25849072]
[1770432138756,0.002,2058.5,2058.3,1.87019995]
[1770432141184,0.002,2058.5,2058.3,0.61170923]
[1770432141349,0.002,2058.5,2058.1,1.21468605]
[1770432143787,1.02456026,2058.5,2057.7,0.04391958]
[1770432144078,1.02456026,2058.5,2057.5,1.21504886]
[1770432144318,1.02456026,2058.5,2057.2,1.21523383]
[1770432144462,1.02456026,2058.5,2057.4,0.04391958]
[1770432144652,1.02456026,2058.5,2057.4,1.25899852]
[1770432144854,1.02456026,2058.5,2057.4,0.65598746]
[1770432145983,1.02256026,2058.3,2057.4,0.65598746]
[1770432147185,1.02256026,2058.3,2057.4,0.04391958]
[1770432149092,2.23721384,2058.2,2057.4,0.04391958]
[1770432149391,2.23721384,2058.2,2057.7,0.04391958]
[1770432150589,2.23721384,2058.2,2057.6,0.001]
[1770432154504,0.002,2058.3,2057.7,1.02243965]
[1770432154671,1.21660047,2058.3,2057.7,0.04391958]
[1770432154866,1.21660047,2058.3,2057.7,1.02243965]
[1770432155366,0.002,2058.3,2058.0,0.04391958]
[1770432158302,0.002,2058.3,2058.0,0.65818171]
[1770432158702,0.002,2058.3,2058.0,1.87294077]
[1770432159104,0.002,2058.3,2058.0,0.65818171]
[1770432163411,0.002,2058.1,2058.0,0.04391958]
[1770432165106,0.002,2058.5,2058.0,1.2586912]
[1770432165316,4.97e-06,2058.5,2058.0,1.2586912]
[1770432166209,4.97e-06,2058.5,2058.0,2.27150477]
[1770432166410,4.97e-06,2058.5,2058.3,0.04391958]
[1770432166580,4.97e-06,2058.5,2058.3,1.25846382]
[1770432166911,4.97e-06,2058.5,2058.3,1.05673315]
[1770432167102,4.97e-06,2058.5,2058.3,2.27132206]
[1770432169189,4.97e-06,2058.5,2058.3,1.25850849]
[1770432171595,4.97e-06,2058.5,2058.4,0.61171118]
[1770432174997,4.97e-06,2058.5,2058.4,1.82624674]
[1770432175199,0.002,2058.7,2058.4,2.83906031]
[1770432175511,0.002,2058.7,2058.6,0.04391958]
[1770432177021,1.02083736,2058.7,2058.3,0.04491958]
[1770432177324,0.002,2058.5,2058.3,0.04491958]
[1770432178517,0.002,2058.5,2058.3,1.94265928]
[1770432180424,0.001,2058.5,2058.3,2.95547285]
[1770432180731,0.002,2058.9,2058.3,2.95547285]
[1770432180906,0.79281999,2059.1,2058.8,0.04391958]
[1770432181114,0.33740195,2059.2,2058.8,0.04391958]
[1770432181304,0.33740195,2059.2,2058.8,1.25816032]
[1770432181505,0.33740195,2059.2,2058.9,0.61154532]
[1770432184523,0.33740195,2059.2,2059.1,0.04391958]
[1770432185112,0.002,2059.4,2059.1,0.04391958]
[1770432186504,0.002,2059.4,2059.1,1.25800768]
[1770432187000,0.002,2059.4,2059.1,2.21810737]
[1770432187200,0.002,2059.4,2059.2,0.70745981]
[1770432187618,0.002,2059.4,2059.2,1.92152352]
[1770432187817,0.002,2059.4,2059.3,0.96009969]
[1770432187818,2.98e-06,2059.4,2059.3,0.96009969]
[1770432188831,2.98e-06,2059.4,2059.2,0.70745981]
[1770432189501,2.98e-06,2059.4,2058.9,0.61154532]
[1770432189708,2.98e-06,2059.4,2058.8,0.04391958]
[1770432189709,2.21862586,2059.4,2058.8,0.04391958]
[1770432190147,2.21862586,2059.4,2058.8,1.25821657]
[1770432192139,1.00467731,2059.4,2058.8,1.25821657]
[1770432192838,2.21862608,2059.4,2058.8,1.25821657]
[1770432193018,2.21862596,2059.4,2058.9,0.61155365]
[1770432195040,2.98e-06,2059.4,2059.1,0.04391958]
[1770432197342,2.98e-06,2059.4,2059.1,1.25803126]
[1770432201341,2.98e-06,2059.4,2059.1,1.25903126]
[1770432201542,0.001,2059.2,2059.1,1.25903126]
[1770432201857,0.001,2059.2,2059.1,2.51730822]
[1770432202352,6.96e-06,2059.6,2059.1,3.51582727]
[1770432202534,6.96e-06,2059.6,2059.4,0.04391958]
[1770432203864,1.00468129,2059.6,2059.4,0.04391958]
[1770432204951,1.00468129,2059.6,2059.1,1.30319654]
[1770432205258,1.00468129,2059.6,2059.1,0.04491958]
[1770432205831,1.21388686,2059.5,2059.1,0.04491958]
[1770432208743,1.00468129,2059.6,2059.1,1.25904185]
[1770432209060,6.96e-06,2059.6,2059.4,0.04391958]
[1770432212579,6.96e-06,2059.6,2059.1,1.25899851]
[1770432212869,6.96e-06,2059.6,2059.1,0.001]
[1770432213063,1.00467433,2059.5,2059.1,0.001]
[1770432214057,1.00467433,2059.5,2059.3,0.001]
[1770432214393,0.002,2059.4,2059.3,0.001]
[1770432221901,0.002,2059.4,2059.3,0.91929555]
[1770432222873,6.96e-06,2059.6,2059.3,2.13327884]
[1770432223092,0.00200696,2059.6,2059.3,0.001]
[1770432225290,1.21583488,2059.6,2059.3,0.001]
[1770432226991,0.00200696,2059.6,2059.3,0.001]
[1770432227286,0.00200696,2059.6,2059.5,0.001]
[1770432227582,0.00200696,2059.6,2059.4,0.04391958]
[1770432228483,6.96e-06,2059.6,2059.4,0.04391958]
[1770432232207,0.00200696,2059.6,2059.3,0.001]
[1770432233677,0.00200696,2059.6,2059.3,0.70447606]
[1770432234077,0.00200696,2059.6,2059.3,0.001]
[1770432234596,0.9152976,2059.6,2059.3,0.001]
[1770432236593,2.12916717,2059.6,2059.3,0.001]
[1770432240301,2.12916717,2059.6,2059.5,0.001]
[1770432240494,2.12916717,2059.6,2059.3,0.001]
[1770432240495,0.002,2059.4,2059.3,0.001]
[1770432242616,0.91529064,2059.4,2059.3,0.001]
[1770432242901,0.91329064,2059.2,2058.9,0.001]
[1770432243071,0.91329064,2059.2,2058.4,1.25840447]
[1770432243791,0.91329064,2059.2,2058.4,1.96390057]
[1770432244099,0.91329064,2059.0,2058.4,0.74941568]
[1770432244280,0.91329064,2059.0,2058.2,1.21561424]
[1770432244601,0.91329064,2059.0,2058.3,0.04391958]
[1770432245100,0.91329064,2059.0,2058.2,0.001]
[1770432246199,0.94123966,2058.8,2058.2,0.001]
[1770432247599,13.56331687,2058.8,2058.2,0.001]
[1770432247900,0.94123966,2058.6,2058.2,0.001]
[1770432248508,0.99172575,2058.4,2058.0,0.001]
[1770432248804,0.99172575,2058.4,2057.8,0.001]
[1770432249013,0.99172575,2058.3,2057.6,0.001]
[1770432250309,0.99172575,2058.3,2057.6,0.91029497]
[1770432250508,1.21465358,2058.2,2057.6,0.91029497]
[1770432250815,1.21465358,2058.2,2057.6,1.61346928]
[1770432253099,1.21465358,2058.2,2057.8,0.001]
[1770432253614,4.8582333,2058.4,2057.8,0.91029497]
[1770432254196,4.8582333,2058.4,2057.8,0.001]
[1770432255314,0.99172575,2058.4,2057.8,0.001]
[1770432259016,1.21441756,2058.6,2057.8,0.91029497]
[1770432259188,0.99172575,2058.5,2057.8,0.001]
[1770432259592,1.21441756,2058.6,2058.0,0.95321455]
[1770432259818,1.21440302,2058.7,2058.0,0.95321455]
[1770432260220,2.20612877,2058.7,2058.0,0.95321455]
[1770432261222,0.99172575,2058.6,2057.9,1.21480812]
[1770432261525,0.99172575,2058.6,2057.8,0.001]
[1770432263534,0.99172575,2058.4,2057.8,0.001]
[1770432265726,1.21459456,2058.3,2058.0,0.001]
[1770432267606,2.20632031,2058.3,2058.0,0.001]
[1770432267930,2.9129864,2058.3,2058.0,0.001]
[1770432268120,0.99172575,2058.2,2058.0,0.001]
[1770432268503,1.92126065,2058.3,2058.0,0.001]
[1770432269035,1.21657094,2058.4,2058.0,0.001]
[1770432270030,0.002,2058.4,2058.0,0.001]
[1770432270422,0.002,2058.4,2058.2,0.90929497]
[1770432270600,0.002,2058.8,2058.2,0.90929497]
[1770432270800,1.21630858,2058.8,2058.2,0.90929497]
[1770432271005,0.002,2058.8,2058.2,0.90929497]
[1770432271206,0.002,2058.8,2058.5,0.90929497]
[1770432271409,0.002,2059.0,2058.5,0.90929497]
[1770432272629,0.002,2059.0,2058.6,2.12371253]
[1770432272832,0.002,2059.0,2058.8,0.90929497]
[1770432273025,0.001,2059.0,2058.9,0.90929497]
[1770432273223,0.99572575,2059.3,2058.7,0.69815061]
[1770432273535,0.99572575,2059.3,2058.5,1.21447406]
[1770432273739,0.004,2059.2,2058.5,1.21447406]
[1770432274035,0.004,2059.2,2058.5,2.12376903]
[1770432274816,1.21806371,2059.2,2058.5,2.12376903]
[1770432277136,0.004,2059.2,2058.5,2.12376903]
[1770432277435,0.004,2059.2,2058.6,0.70258226]
[1770432278307,0.002,2059.0,2058.6,0.70258226]
[1770432279527,0.004,2058.9,2058.6,0.70258226]
[1770432280202,0.002,2059.0,2058.6,0.70258226]
[1770432280401,0.004,2058.9,2058.6,0.70258226]
[1770432280607,0.004,2058.9,2058.7,0.28263513]
[1770432282262,0.004,2058.9,2058.7,1.49699324]
[1770432282415,0.002,2059.0,2058.8,0.95547626]
[1770432282817,0.006,2059.0,2058.7,0.28263513]
[1770432283513,0.006,2059.0,2058.5,1.21447314]
[1770432283732,0.006,2059.0,2058.6,2.1698881]
[1770432285035,0.006,2059.0,2058.3,1.21456887]
[1770432285238,0.006,2059.0,2058.4,1.2145305]
[1770432286341,0.9252876,2059.0,2058.1,0.04391958]
[1770432286513,0.9252876,2059.0,2058.1,0.62985716]
[1770432286709,0.9252876,2059.0,2058.1,1.84454507]
[1770432286912,0.9192876,2058.8,2058.1,1.84454507]
[1770432287719,0.9232876,2058.7,2058.0,1.21576427]
[1770432288239,0.004,2058.6,2058.1,1.2146954]
[1770432288441,0.004,2058.8,2058.1,1.2146954]
[1770432288741,0.004,2058.8,2058.1,1.25861498]
[1770432288928,0.004,2058.7,2058.1,1.25861498]
[1770432289132,0.9232876,2058.7,2058.0,0.001]
[1770432289463,0.004,2058.6,2058.0,0.001]
[1770432289615,0.004,2058.6,2058.0,1.9233383]
[1770432290318,0.004,2058.6,2058.1,2.17016399]
[1770432290618,0.004,2058.6,2058.2,0.001]
[1770432291219,0.9192876,2058.8,2058.2,0.001]
[1770432291434,0.9192876,2058.7,2058.2,0.001]
[1770432292027,0.9232876,2058.6,2058.2,0.001]
[1770432293925,2.1377389,2058.6,2058.2,0.001]
[1770432301052,0.9192876,2058.5,2058.0,0.001]
[1770432301261,0.9192876,2058.3,2058.0,0.001]
[1770432301629,2.13794118,2058.2,2058.0,0.001]
[1770432302029,2.13794118,2058.2,2057.6,0.001]
[1770432302030,0.9192876,2058.0,2057.6,0.001]
[1770432302253,0.9192876,2057.8,2057.3,0.001]
[1770432302428,0.9192876,2057.6,2057.3,0.001]
[1770432302630,1.58974335,2057.5,2057.3,0.001]
[1770432302857,0.9192876,2057.5,2057.3,0.001]
[1770432303027,0.004,2057.4,2057.3,0.001]
[1770432303226,0.9232876,2057.4,2057.3,0.001]
[1770432303655,2.13841348,2057.4,2057.3,0.001]
[1770432304057,2.13841348,2057.4,2057.1,0.001]
[1770432304242,2.83828397,2057.4,2056.9,0.001]
[1770432304656,1.91899637,2057.4,2056.9,0.001]
[1770432305342,1.21912588,2057.4,2056.9,0.001]
[1770432306531,4.85932261,2058.0,2057.2,0.96014453]
[1770432306756,4.86332261,2058.0,2057.2,0.96014453]
[1770432307160,0.91994442,2057.9,2056.9,0.001]
[1770432307360,0.91994442,2057.7,2056.9,0.001]
[1770432308135,0.004,2057.6,2057.2,0.04391958]
[1770432308345,0.004,2057.6,2057.2,0.97779181]
[1770432308574,0.004,2057.6,2057.3,0.93387223]
[1770432308773,0.004,2057.6,2057.3,2.4166792]
[1770432309174,4.85908649,2058.2,2057.4,0.93387223]
[1770432309345,0.91652162,2058.1,2057.2,0.04391958]
[1770432309549,0.91652162,2058.1,2057.0,2.14922809]
[1770432309763,0.91652162,2058.1,2057.1,1.21530106]
[1770432309970,0.91252162,2057.9,2057.1,1.21529814]
[1770432310274,0.91252162,2057.9,2057.0,1.2153245]
[1770432310460,0.91652162,2057.8,2057.0,1.2153245]
[1770432310975,1.21494872,2057.7,2057.0,1.21536217]
[1770432311859,1.21494872,2057.7,2057.1,0.93387223]
[1770432312156,1.21494872,2057.7,2057.1,1.63944238]
[1770432312764,1.21494872,2057.7,2057.0,1.21536217]
[1770432312765,0.004,2057.6,2056.9,2.1941899]
[1770432312968,0.91252162,2057.8,2056.9,2.1941899]
[1770432313359,0.004,2057.7,2056.9,2.19421097]
[1770432314482,0.004,2057.7,2056.9,0.97879181]
[1770432314789,1.21900777,2057.6,2056.9,0.93487223]
[1770432315381,1.21900777,2057.6,2057.1,0.001]
[1770432315761,0.002,2057.5,2057.1,0.001]
[1770432318972,0.004,2057.4,2057.1,0.001]
[1770432319173,0.004,2057.4,2057.1,0.93487223]
[1770432319498,0.004,2057.4,2057.1,2.41350711]
[1770432319881,0.002,2057.7,2057.4,0.93387223]
[1770432320066,0.004,2057.6,2057.4,0.93387223]
[1770432320267,0.002,2057.7,2057.4,0.93387223]
[1770432320467,0.002,2057.7,2057.5,2.29076543]
[1770432320669,0.002,2057.7,2057.6,0.93387223]
[1770432320895,0.004,2057.6,2057.2,0.04391958]
[1770432321195,0.002,2057.7,2057.1,0.001]
[1770432321365,0.004,2057.6,2057.1,0.001]
[1770432323784,0.004,2057.6,2057.1,0.93487223]
[1770432324090,0.004,2057.6,2057.1,0.001]
[1770432325911,0.91252162,2057.5,2056.9,0.001]
[1770432326077,0.91652162,2057.5,2056.9,0.001]
[1770432327870,1.21512588,2057.4,2056.9,0.001]
[1770432328198,0.6992151,2057.3,2056.9,0.001]
[1770432328790,0.7012151,2057.3,2057.1,0.001]
[1770432328993,0.7012151,2057.3,2056.9,0.001]
[1770432329194,0.004,2057.2,2056.9,0.001]
[1770432330788,0.002,2057.3,2056.9,0.93487223]
[1770432330789,0.004,2057.1,2056.9,0.93487223]
[1770432330995,0.002,2057.3,2056.9,0.93487223]
[1770432331174,0.006,2057.3,2056.9,0.93487223]
[1770432331570,0.004,2057.2,2056.9,0.001]
[1770432331877,0.002,2057.3,2056.9,0.001]
[1770432332073,0.004,2057.2,2056.9,0.001]
[1770432332590,0.004,2057.1,2056.9,0.001]
[1770432332773,0.91452162,2057.3,2056.7,0.001]
[1770432332970,0.91652162,2057.2,2056.7,0.001]
[1770432333383,0.91252162,2057.1,2056.5,0.001]
[1770432333597,0.35469017,2057.0,2056.6,0.93387223]
[1770432333780,0.004,2056.9,2056.6,0.93387223]
[1770432334378,0.004,2056.9,2056.5,0.001]
[1770432334705,0.64753018,2056.9,2056.5,0.001]
[1770432336378,1.21548035,2056.8,2056.5,0.001]
[1770432336774,1.86299844,2056.9,2056.5,0.001]
[1770432337994,1.86299844,2056.9,2056.5,0.9454966]
[1770432337995,0.004,2056.9,2056.5,0.9454966]
[1770432338197,1.2194251,2056.9,2056.5,0.001]
[1770432338378,0.004,2056.9,2056.5,0.001]
[1770432340209,1.57005238,2057.0,2056.5,0.001]
[1770432340380,0.004,2056.9,2056.5,0.001]
[1770432340901,0.004,2056.9,2056.7,0.001]
[1770432341291,0.006,2056.9,2056.7,0.001]
[1770432346507,0.006,2056.9,2056.7,0.9454966]
[1770432346811,0.34869017,2057.0,2056.7,0.9454966]
[1770432347927,1.5640586,2057.0,2056.7,0.001]
[1770432348206,2.30626567,2057.0,2056.7,0.001]
[1770432349534,1.5640586,2057.0,2056.7,0.001]
[1770432351308,1.5600586,2057.0,2056.7,0.001]
[1770432351498,1.5600586,2057.0,2056.5,0.001]
[1770432351499,1.00068287,2056.9,2056.5,0.001]
[1770432351696,0.004,2056.9,2056.5,0.001]
[1770432351903,0.74620707,2056.9,2056.5,0.001]
[1770432352292,1.74288994,2056.9,2056.5,0.001]
[1770432352484,1.21548035,2056.8,2056.5,0.001]
[1770432353192,0.004,2056.7,2056.5,0.001]
[1770432353399,0.004,2056.7,2056.0,0.9454966]
[1770432353400,1.00068287,2056.7,2056.0,0.9454966]
[1770432353605,1.00068287,2056.7,2056.0,0.001]
[1770432353606,0.004,2056.6,2056.0,0.001]
[1770432353833,0.004,2056.6,2055.8,5.80873955]
[1770432353834,1.00068287,2056.6,2055.6,0.001]
[1770432354118,0.99668287,2056.4,2055.6,0.001]
[1770432354887,2.21245877,2056.3,2055.6,0.001]
[1770432356414,0.004,2056.2,2055.6,0.001]
[1770432358424,0.004,2056.1,2055.6,0.001]
[1770432359321,0.004,2056.1,2055.6,2.16166071]
[1770432359495,0.004,2056.1,2055.6,2.86432576]
[1770432359816,5.85887767,2056.7,2055.7,0.9444966]
[1770432360017,5.85887767,2056.7,2055.6,0.70366505]
[1770432360018,0.99668287,2056.3,2055.6,0.70366505]
[1770432360219,0.99668287,2056.3,2055.6,1.91983532]
[1770432360415,0.99668287,2056.3,2055.7,0.67848229]
[1770432361723,1.21983503,2056.2,2055.6,0.001]
[1770432361902,2.2165179,2056.2,2055.6,0.001]
[1770432362101,0.004,2056.1,2055.6,0.001]
[1770432362543,0.99668287,2056.1,2055.0,2.90262338]
[1770432362698,0.99668287,2055.9,2055.0,2.90262338]
[1770432362899,0.99668287,2055.9,2055.1,1.60118797]
[1770432363120,0.99668287,2055.7,2055.1,1.60119669]
[1770432363322,0.99668287,2055.7,2055.1,1.60119315]
[1770432364018,0.99668287,2055.7,2055.1,0.384712]
[1770432364331,2.21687279,2055.6,2055.0,1.21654146]
[1770432364558,2.21287279,2055.6,2054.9,1.2165571]
[1770432365209,0.004,2055.5,2054.8,0.9444966]
[1770432365525,0.004,2055.5,2055.0,1.21654042]